[Event "Charlotte Open 2024"]
[Site "Charlotte"]
[Date "2024.01.14"]
[Round "3.2"]
[White "Horobetz, Graham"]
[Black "Brodsky, David"]
[Result "1/2-1/2"]
[ECO "B90"]
[WhiteElo "2249"]
[BlackElo "2492"]
[Annotator "RC"]
[PlyCount "114"]
[EventDate "2024.01.05"]
[EventType "swiss"]
[EventCountry "USA"]
[SourceTitle "playchess.com"]
[Source "ChessBase"]
[SourceQuality "1"]
[TimeControl "6600+10"]

1. e4 {[%emt 0:02:48]} c5 {[%emt 0:04:10]} 2. Nf3 {[%emt 0:00:07]} d6 {[%emt 0:00:04]} 3. d4 {[%emt 0:00:07]} cxd4 {[%emt 0:00:02]} 4. Nxd4 {[%emt 0:00:08]} Nf6 {[%emt 0:00:03]} 5. Nc3 {[%emt 0:00:08]} a6 {[%emt 0:00:02]} 6. f3 {[%emt 0:00:06]} e5 {[%emt 0:00:03]} 7. Nb3 {[%emt 0:00:05]} Be6 {[%emt 0:00:03]} 8. Be3 {[%emt 0:00:08]} Be7 {[%emt 0:00:07]} 9. Qd2 {[%emt 0:00:05]} O-O {[%emt 0:00:04]} 10. O-O-O {[%emt 0:00:07]} Nbd7 {[%emt 0:00:03]} 11. g4 {[%emt 0:00:20]} b5 {[%emt 0:00:03]} 12. g5 {[%emt 0:00:05]} Nh5 {[%emt 0:00:04]} 13. Kb1 {[%emt 0:00:05]} Nb6 {[%emt 0:00:05]} 14. Nd5 {[%emt 0:00:05]} Nxd5 {[%emt 0:00:10]} 15. exd5 {[%emt 0:00:07]} Bf5 {[%emt 0:00:03]} 16. Na5 {[%emt 0:01:07]} f6 {[%emt 0:00:05]} 17. Nc6 {[%emt 0:00:21]} Qd7 {[%emt 0:00:03]} 18. h4 {[%emt 1:47:11]} Rae8 {[%emt 0:00:04]} 19. b3 {[%emt 0:00:00]} fxg5 {[%emt 0:04:04]} 20. hxg5 {[%emt 0:00:00]} Ng3 {[%emt 0:00:04]} 21. Rh2 {[%emt 0:00:00]} Nxf1 {[%emt 1:44:14]} 22. Rxf1 {[%emt 0:00:00]} Bd8 {[%emt 0:00:00]} 23. Kb2 {[%emt 0:00:00]} Bg6 {[%emt 0:00:00]} 24. Rh4 {[%emt 0:00:00]} Rf5 {[%emt 0:00:00]} 25. Rf2 {[%emt 0:00:00]} Qf7 {[%emt 0:00:00]} 26. a4 {[%emt 0:00:00]} Rxf3 {[%emt 0:00:00]} 27. Rxf3 {[%emt 0:00:00]} Qxf3 {[%emt 0:00:00]} 28. axb5 {[%emt 0:00:00]} axb5 {[%emt 0:00:00]} 29. Rb4 {[%emt 0:00:00]} Qf1 {[%emt 0:00:00]} 30. Qc1 {[%emt 0:00:00]} Qe2 {[%emt 0:00:00]} 31. Qd2 {[%emt 0:00:00]} Qxd2 {[%emt 0:00:00]} 32. Bxd2 {[%emt 0:00:00]} Bb6 {[%emt 0:00:00]} 33. Rxb5 {[%emt 0:00:00]} Bf2 {[%emt 0:00:00]} 34. Bb4 {[%emt 0:00:00]} e4 {[%emt 0:00:00]} 35. Bxd6 {[%emt 0:00:00]} e3 {[%emt 0:00:00]} 36. Bb4 {[%emt 0:00:00]} Be4 {[%emt 0:00:00]} 37. Nd4 {[%emt 0:00:00]} Bg3 {[%emt 0:00:00]} 38. Ne2 {[%emt 0:00:00]} Be5+ {[%emt 0:00:00]} 39. Bc3 {[%emt 0:00:00]} Bf3 {[%emt 0:00:00]} 40. Bxe5 {[%emt 0:00:00]} Rxe5 {[%emt 0:00:00]} 41. Nd4 {[%emt 0:00:00]} Bg4 {[%emt 0:00:00]} 42. c4 {[%emt 0:00:00]} e2 {[%emt 0:00:00]} 43. Nc2 {[%emt 0:00:00]} e1=Q {[%emt 0:00:00]} 44. Nxe1 {[%emt 0:00:00]} Rxe1 {[%emt 0:00:00]} 45. Rb7 {[%emt 0:00:00]} h5 {[%emt 0:00:00]} 46. g6 {[%emt 0:00:00]} Re8 {[%emt 0:00:00]} 47. d6 {[%emt 0:00:00]} h4 {[%emt 0:00:00]} 48. c5 {[%emt 0:00:00]} h3 {[%emt 0:00:00]} 49. c6 {[%emt 0:00:22]} h2 {[%emt 0:00:00]} 50. Re7 {[%emt 0:00:31]} Rf8 {[%emt 0:00:00]} 51. Re1 {[%emt 0:00:13]} Bf3 {[%emt 0:00:00]} 52. c7 {[%emt 0:00:09]} Bg4 {[%emt 0:00:00]} 53. b4 {[%emt 0:01:08]} Bd7 {[%emt 0:00:00]} 54. Rc1 {[%emt 0:00:44]} Rf2+ {[%emt 0:00:00]} 55. Ka3 {[%emt 0:01:17]} Rf3+ {[%emt 0:00:00]} 56. Kb2 {[%emt 0:00:05]} Rf2+ {[%emt 0:00:00]} 57. Ka3 {[%emt 0:00:46]} Rf3+ {[%emt 0:00:00]} 1/2-1/2

[Event "Charlotte Open 2024"]
[Site "Charlotte"]
[Date "2024.01.14"]
[Round "3.3"]
[White "Cruz, Cristhian"]
[Black "Titus, Andrew"]
[Result "1-0"]
[ECO "A13"]
[WhiteElo "2498"]
[BlackElo "2202"]
[Annotator "RC"]
[PlyCount "87"]
[EventDate "2024.01.05"]
[EventType "swiss"]
[EventCountry "USA"]
[SourceTitle "playchess.com"]
[Source "ChessBase"]
[SourceQuality "1"]
[TimeControl "6600+10"]

1. c4 {[%emt 0:06:15]} e6 {[%emt 0:03:25]} 2. Nf3 {[%emt 0:01:34]} d5 {[%emt 0:00:08]} 3. e3 {[%emt 0:01:46]} Nf6 {[%emt 0:00:29]} 4. b3 {[%emt 0:01:10]} Be7 {[%emt 0:01:21]} 5. Bb2 {[%emt 0:00:34]} O-O {[%emt 0:00:35]} 6. Nc3 {[%emt 0:00:43]} c5 {[%emt 0:10:47]} 7. cxd5 {[%emt 0:02:57]} Nxd5 {[%emt 0:06:44]} 8. Be2 {[%emt 0:06:38]} Nc6 {[%emt 0:08:22]} 9. O-O {[%emt 0:03:57]} b6 {[%emt 0:03:49]} 10. Nxd5 {[%emt 0:21:24]} Qxd5 {[%emt 0:00:44]} 11. Bc4 {[%emt 0:00:39]} Qd8 {[%emt 0:16:56]} 12. d4 {[%emt 0:08:56]} cxd4 {[%emt 0:01:39]} 13. Nxd4 {[%emt 0:00:28]} Nxd4 {[%emt 0:00:33]} 14. Bxd4 {[%emt 0:00:17]} Bb7 {[%emt 0:00:36]} 15. Qg4 {[%emt 0:01:58]} Bf6 {[%emt 0:00:56]} 16. Rad1 {[%emt 0:00:47]} Bxd4 {[%emt 0:02:16]} 17. Rxd4 {[%emt 0:00:10]} Qe7 {[%emt 0:00:14]} 18. Rfd1 {[%emt 0:02:01]} Rfd8 {[%emt 0:01:04]} 19. h4 {[%emt 0:02:29]} h6 {[%emt 0:04:05]} 20. a4 {[%emt 0:02:29]} Rxd4 {[%emt 0:04:06]} 21. Qxd4 {[%emt 0:00:31]} Bc6 {[%emt 0:00:38]} 22. Qd6 {[%emt 0:22:02]} Qxd6 {[%emt 0:01:04]} 23. Rxd6 {[%emt 0:00:10]} Be8 {[%emt 0:01:00]} 24. e4 {[%emt 0:00:58]} Kf8 {[%emt 0:00:20]} 25. e5 {[%emt 0:01:16]} Rc8 {[%emt 0:01:31]} 26. Rd4 {[%emt 0:00:56]} Ke7 {[%emt 0:00:32]} 27. f4 {[%emt 0:01:32]} h5 {[%emt 0:07:16]} 28. Kf2 {[%emt 0:00:23]} Rc7 {[%emt 0:00:44]} 29. Ke3 {[%emt 0:02:02]} Bc6 {[%emt 0:02:55]} 30. g3 {[%emt 0:00:15]} g6 {[%emt 0:00:44]} 31. Kd3 {[%emt 0:01:21]} Rd7 {[%emt 0:02:50]} 32. Kc3 {[%emt 0:00:37]} Rxd4 {[%emt 0:01:11]} 33. Kxd4 {[%emt 0:00:01]} a5 {[%emt 0:00:01]} 34. Kc3 {[%emt 0:01:41]} Kd7 {[%emt 0:02:45]} 35. f5 {[%emt 0:02:13]} exf5 {[%emt 0:18:36]} 36. Bxf7 {[%emt 0:00:08]} g5 {[%emt 0:00:06]} 37. hxg5 {[%emt 0:00:26]} f4 {[%emt 0:00:05]} 38. gxf4 {[%emt 0:03:51]} h4 {[%emt 0:00:05]} 39. g6 {[%emt 0:00:50]} h3 {[%emt 0:02:28]} 40. g7 {[%emt 0:00:05]} h2 {[%emt 0:00:02]} 41. g8=Q {[%emt 0:08:30]} h1=Q {[%emt 0:00:02]} 42. Be6+ {[%emt 0:00:00]} Ke7 {[%emt 0:00:07]} 43. Qf7+ {[%emt 0:00:00]} Kd8 {[%emt 0:00:03]} 44. Qf8+ {[%emt 0:00:00]} 1-0

[Event "Charlotte Open 2024"]
[Site "Charlotte"]
[Date "2024.01.14"]
[Round "3.4"]
[White "Abrahamyan, Tatev"]
[Black "Troff, Kayden"]
[Result "1/2-1/2"]
[ECO "B27"]
[WhiteElo "2311"]
[BlackElo "2484"]
[Annotator "RC"]
[PlyCount "65"]
[EventDate "2024.01.05"]
[EventType "swiss"]
[EventCountry "USA"]
[SourceTitle "playchess.com"]
[Source "ChessBase"]
[SourceQuality "1"]
[TimeControl "6600+10"]

1. e4 {[%emt 0:00:08]} c5 {[%emt 0:00:08]} 2. Nf3 {[%emt 0:00:05]} g6 {[%emt 0:00:06]} 3. d4 {[%emt 0:00:27]} cxd4 {[%emt 0:00:07]} 4. Qxd4 {[%emt 0:00:02]} Nf6 {[%emt 0:00:11]} 5. Nc3 {[%emt 0:00:07]} Nc6 {[%emt 0:00:14]} 6. Qa4 {[%emt 0:00:04]} d6 {[%emt 0:00:09]} 7. e5 {[%emt 0:00:19]} dxe5 {[%emt 0:00:12]} 8. Nxe5 {[%emt 0:00:06]} Bd7 {[%emt 0:00:11]} 9. Nxd7 {[%emt 0:00:17]} Nxd7 {[%emt 0:00:09]} 10. Bb5 {[%emt 0:00:28]} Bg7 {[%emt 0:00:20]} 11. O-O {[%emt 0:00:47]} O-O {[%emt 0:00:43]} 12. Rd1 {[%emt 0:00:41]} Qc8 {[%emt 0:06:51]} 13. Nd5 {[%emt 0:03:11]} Nb6 {[%emt 0:12:00]} 14. Bxc6 {[%emt 0:30:19]} Nxa4 {[%emt 0:00:43]} 15. Nxe7+ {[%emt 0:00:03]} Kh8 {[%emt 0:00:07]} 16. Nxc8 {[%emt 0:00:03]} bxc6 {[%emt 0:00:21]} 17. Nd6 {[%emt 0:05:54]} Rab8 {[%emt 0:07:27]} 18. Nc4 {[%emt 0:23:03]} Nxb2 {[%emt 0:28:40]} 19. Bxb2 {[%emt 0:01:16]} Bxb2 {[%emt 0:02:09]} 20. Rab1 {[%emt 0:10:25]} Bf6 {[%emt 0:04:22]} 21. Kf1 {[%emt 0:00:46]} Rb5 {[%emt 0:08:25]} 22. Rxb5 {[%emt 0:03:57]} cxb5 {[%emt 0:00:09]} 23. Nd6 {[%emt 0:00:02]} a6 {[%emt 0:05:40]} 24. Ne4 {[%emt 0:05:45]} Be5 {[%emt 0:02:26]} 25. Rd7 {[%emt 0:01:40]} Kg8 {[%emt 0:17:27]} 26. Re7 {[%emt 0:12:17]} Bb2 {[%emt 0:05:10]} 27. Ra7 {[%emt 0:06:19]} Rc8 {[%emt 0:00:35]} 28. Rxa6 {[%emt 0:00:27]} Rxc2 {[%emt 0:00:16]} 29. Ra8+ {[%emt 0:00:09]} Kg7 {[%emt 0:00:06]} 30. Rb8 {[%emt 0:00:19]} Bd4 {[%emt 0:07:56]} 31. Rxb5 {[%emt 0:01:25]} Rxa2 {[%emt 0:00:10]} 32. Rd5 {[%emt 0:00:30]} Bb6 {[%emt 0:00:16]} 33. Rd7 {[%emt 0:02:04]} 1/2-1/2

[Event "Charlotte Open 2024"]
[Site "Charlotte"]
[Date "2024.01.14"]
[Round "3.5"]
[White "Vanapalli, Vishnu"]
[Black "Zhou, Jianchao"]
[Result "0-1"]
[ECO "A21"]
[WhiteElo "2276"]
[BlackElo "2562"]
[Annotator "RC"]
[PlyCount "108"]
[EventDate "2024.01.05"]
[EventType "swiss"]
[EventCountry "USA"]
[SourceTitle "playchess.com"]
[Source "ChessBase"]
[SourceQuality "1"]
[TimeControl "6600+10"]

1. c4 {[%emt 1:50:20]} e5 {[%emt 0:07:36]} 2. g3 {[%emt 0:00:00]} f5 {[%emt 0:00:46]} 3. d4 {[%emt 0:00:00]} e4 {[%emt 0:04:50]} 4. Nc3 {[%emt 0:00:00]} Nf6 {[%emt 0:02:54]} 5. Bg2 {[%emt 0:00:00]} c6 {[%emt 0:02:56]} 6. Bg5 {[%emt 0:00:00]} Be7 {[%emt 0:02:05]} 7. e3 {[%emt 0:00:00]} Na6 {[%emt 0:03:55]} 8. Nge2 {[%emt 0:00:00]} Nc7 {[%emt 0:03:07]} 9. O-O {[%emt 0:00:00]} d6 {[%emt 0:04:14]} 10. Rc1 {[%emt 0:00:00]} Ng4 {[%emt 0:01:24]} 11. Bxe7 {[%emt 0:00:00]} Qxe7 {[%emt 0:00:03]} 12. Qd2 {[%emt 0:00:00]} O-O {[%emt 0:02:29]} 13. h3 {[%emt 0:00:00]} Nf6 {[%emt 0:00:10]} 14. f4 {[%emt 0:00:00]} exf3 {[%emt 0:01:26]} 15. Rxf3 {[%emt 0:00:00]} Bd7 {[%emt 0:02:11]} 16. Re1 {[%emt 0:00:00]} Rae8 {[%emt 0:02:11]} 17. b3 {[%emt 0:00:00]} d5 {[%emt 0:08:36]} 18. Nf4 {[%emt 0:00:00]} Qd6 {[%emt 0:01:58]} 19. c5 {[%emt 0:00:00]} Qe7 {[%emt 0:00:06]} 20. Nd3 {[%emt 0:00:00]} Ne4 {[%emt 0:02:26]} 21. Qc1 {[%emt 0:00:00]} Ne6 {[%emt 0:04:04]} 22. Kh2 {[%emt 0:00:00]} N6g5 {[%emt 0:02:16]} 23. Rf4 {[%emt 0:00:00]} Nf7 {[%emt 0:01:32]} 24. b4 {[%emt 0:00:00]} a6 {[%emt 0:00:46]} 25. Ref1 {[%emt 0:00:00]} Nf6 {[%emt 0:01:55]} 26. Re1 {[%emt 0:00:00]} Qd8 {[%emt 0:01:41]} 27. Rff1 {[%emt 0:01:00]} Re7 {[%emt 0:05:24]} 28. Ne2 {[%emt 0:00:44]} Qc7 {[%emt 0:01:29]} 29. Ng1 {[%emt 0:00:09]} Ne4 {[%emt 0:01:23]} 30. Rf3 {[%emt 0:00:51]} Rfe8 {[%emt 0:00:44]} 31. Re2 {[%emt 0:00:16]} g5 {[%emt 0:05:13]} 32. Qe1 {[%emt 0:00:10]} Kh8 {[%emt 0:01:03]} 33. Rf1 {[%emt 0:01:12]} h5 {[%emt 0:01:21]} 34. Bxe4 {[%emt 0:00:17]} fxe4 {[%emt 0:00:17]} 35. Nc1 {[%emt 0:00:22]} h4 {[%emt 0:02:38]} 36. Kh1 {[%emt 0:00:31]} Qxg3 {[%emt 0:02:56]} 37. Qxg3 {[%emt 0:00:02]} hxg3 {[%emt 0:00:03]} 38. Kg2 {[%emt 0:00:07]} Nh6 {[%emt 0:00:15]} 39. Kxg3 {[%emt 0:00:04]} Nf5+ {[%emt 0:00:07]} 40. Kf2 {[%emt 0:00:24]} Rh7 {[%emt 0:01:37]} 41. Nb3 {[%emt 0:00:17]} Rg8 {[%emt 0:00:29]} 42. Na5 {[%emt 0:00:11]} Bc8 {[%emt 0:00:45]} 43. a4 {[%emt 0:00:05]} g4 {[%emt 0:00:37]} 44. hxg4 {[%emt 0:00:01]} Rxg4 {[%emt 0:00:12]} 45. Ke1 {[%emt 0:00:05]} Rh1 {[%emt 0:01:26]} 46. Nxb7 {[%emt 0:00:05]} Rgxg1 {[%emt 0:01:19]} 47. Rxg1 {[%emt 0:00:02]} Rxg1+ {[%emt 0:00:03]} 48. Kf2 {[%emt 0:00:01]} Rb1 {[%emt 0:00:23]} 49. Nd8 {[%emt 0:00:01]} Bd7 {[%emt 0:00:10]} 50. Nf7+ {[%emt 0:00:02]} Kg7 {[%emt 0:00:05]} 51. Ne5 {[%emt 0:00:01]} Be8 {[%emt 0:00:14]} 52. b5 {[%emt 0:00:03]} axb5 {[%emt 0:00:25]} 53. axb5 {[%emt 0:00:04]} Rxb5 {[%emt 0:00:28]} 54. Ra2 {[%emt 0:00:01]} Kf8 {[%emt 0:01:11]} 0-1

[Event "Charlotte Open 2024"]
[Site "Charlotte"]
[Date "2024.01.14"]
[Round "3.6"]
[White "Sadorra, Julio Catalino"]
[Black "Foisor, Sabina-Francesca"]
[Result "1-0"]
[ECO "A11"]
[WhiteElo "2554"]
[BlackElo "2200"]
[Annotator "RC"]
[PlyCount "59"]
[EventDate "2024.01.05"]
[EventType "swiss"]
[EventCountry "USA"]
[SourceTitle "playchess.com"]
[Source "ChessBase"]
[SourceQuality "1"]
[TimeControl "6600+10"]

1. Nf3 {[%emt 0:02:32]} d5 {[%emt 0:09:05]} 2. c4 {[%emt 0:00:32]} c6 {[%emt 0:00:23]} 3. g3 {[%emt 0:00:28]} Nf6 {[%emt 0:00:20]} 4. Bg2 {[%emt 0:00:07]} Bf5 {[%emt 0:04:45]} 5. Qb3 {[%emt 0:02:09]} Qc8 {[%emt 0:02:15]} 6. cxd5 {[%emt 0:02:03]} cxd5 {[%emt 0:06:40]} 7. Nc3 {[%emt 0:00:20]} e6 {[%emt 0:00:48]} 8. Nd4 {[%emt 0:02:34]} Bg6 {[%emt 0:03:39]} 9. d3 {[%emt 0:00:52]} Bc5 {[%emt 0:08:45]} 10. Be3 {[%emt 0:03:43]} O-O {[%emt 0:10:12]} 11. Rc1 {[%emt 0:02:08]} Ng4 {[%emt 0:07:12]} 12. Na4 {[%emt 0:23:22]} Nxe3 {[%emt 0:00:54]} 13. fxe3 {[%emt 0:00:15]} b6 {[%emt 0:01:51]} 14. Nxc5 {[%emt 0:25:00]} bxc5 {[%emt 0:00:32]} 15. Qb5 {[%emt 0:01:42]} Nd7 {[%emt 0:03:05]} 16. b4 {[%emt 0:00:45]} Rb8 {[%emt 0:05:19]} 17. Qa5 {[%emt 0:00:04]} e5 {[%emt 0:06:18]} 18. Nb3 {[%emt 0:00:39]} e4 {[%emt 0:07:39]} 19. Bh3 {[%emt 0:05:42]} f5 {[%emt 0:03:32]} 20. d4 {[%emt 0:07:15]} Rxb4 {[%emt 0:02:04]} 21. dxc5 {[%emt 0:01:21]} Rc4 {[%emt 0:02:09]} 22. O-O {[%emt 0:02:59]} Qc6 {[%emt 0:00:42]} 23. Qd2 {[%emt 0:01:58]} Ne5 {[%emt 0:07:09]} 24. Nd4 {[%emt 0:10:15]} Qd7 {[%emt 0:01:27]} 25. Rxc4 {[%emt 0:01:54]} dxc4 {[%emt 0:02:14]} 26. Qb4 {[%emt 0:02:19]} Qd5 {[%emt 0:02:35]} 27. Bxf5 {[%emt 0:01:28]} Bxf5 {[%emt 0:04:20]} 28. Nxf5 {[%emt 0:00:05]} Nc6 {[%emt 0:02:44]} 29. Qb7 {[%emt 0:00:14]} Rf7 {[%emt 0:01:25]} 30. Qa8+ {[%emt 0:00:41]} 1-0

[Event "Charlotte Open 2024"]
[Site "Charlotte"]
[Date "2024.01.14"]
[Round "3.7"]
[White "Proleiko, Julian"]
[Black "Ippolito, Dean"]
[Result "1-0"]
[ECO "E60"]
[WhiteElo "2270"]
[BlackElo "2379"]
[Annotator "RC"]
[PlyCount "113"]
[EventDate "2024.01.05"]
[EventType "swiss"]
[EventCountry "USA"]
[SourceTitle "playchess.com"]
[Source "ChessBase"]
[SourceQuality "1"]
[TimeControl "6600+10"]

1. Nf3 {[%emt 0:00:04]} Nf6 {[%emt 0:00:11]} 2. g3 {[%emt 0:00:07]} g6 {[%emt 0:00:17]} 3. b3 {[%emt 0:00:04]} Bg7 {[%emt 0:00:04]} 4. Bb2 {[%emt 0:00:04]} O-O {[%emt 0:02:08]} 5. Bg2 {[%emt 0:00:17]} d6 {[%emt 0:02:08]} 6. d4 {[%emt 0:00:05]} Nbd7 {[%emt 0:01:11]} 7. c4 {[%emt 0:00:26]} e5 {[%emt 0:01:01]} 8. dxe5 {[%emt 0:00:05]} Ng4 {[%emt 0:01:02]} 9. Nc3 {[%emt 0:01:00]} Ngxe5 {[%emt 0:00:38]} 10. Nxe5 {[%emt 0:00:25]} dxe5 {[%emt 0:04:10]} 11. O-O {[%emt 0:07:29]} c6 {[%emt 0:08:09]} 12. Ba3 {[%emt 0:02:14]} Re8 {[%emt 0:03:52]} 13. Ne4 {[%emt 0:00:07]} Qa5 {[%emt 0:01:53]} 14. Qc1 {[%emt 0:03:24]} Nf6 {[%emt 0:01:34]} 15. Nd6 {[%emt 0:00:38]} Rd8 {[%emt 0:00:32]} 16. Nxc8 {[%emt 0:03:29]} Raxc8 {[%emt 0:01:26]} 17. Be7 {[%emt 0:00:08]} Re8 {[%emt 0:03:28]} 18. Qa3 {[%emt 0:02:08]} Qxa3 {[%emt 0:33:55]} 19. Bxa3 {[%emt 0:00:09]} Rcd8 {[%emt 0:00:07]} 20. Rfd1 {[%emt 0:01:55]} Nd7 {[%emt 0:02:06]} 21. Rd2 {[%emt 0:03:59]} Nb8 {[%emt 0:02:50]} 22. Rad1 {[%emt 0:00:44]} Rxd2 {[%emt 0:00:08]} 23. Rxd2 {[%emt 0:00:01]} Bf8 {[%emt 0:00:34]} 24. Bb2 {[%emt 0:00:14]} f6 {[%emt 0:01:55]} 25. e3 {[%emt 0:01:21]} Kf7 {[%emt 0:01:59]} 26. Kf1 {[%emt 0:00:44]} Bc5 {[%emt 0:05:24]} 27. Ke2 {[%emt 0:03:13]} Ke7 {[%emt 0:00:47]} 28. g4 {[%emt 0:03:54]} Nd7 {[%emt 0:11:15]} 29. Bc3 {[%emt 0:00:55]} Bd6 {[%emt 0:04:30]} 30. h4 {[%emt 0:04:05]} Nc5 {[%emt 0:01:02]} 31. Rd1 {[%emt 0:00:45]} Rd8 {[%emt 0:04:34]} 32. Rh1 {[%emt 0:03:47]} Na6 {[%emt 0:01:29]} 33. h5 {[%emt 0:01:08]} g5 {[%emt 0:00:38]} 34. h6 {[%emt 0:00:26]} f5 {[%emt 0:06:03]} 35. gxf5 {[%emt 0:00:36]} Kf6 {[%emt 0:00:01]} 36. f4 {[%emt 0:02:15]} gxf4 {[%emt 0:00:02]} 37. exf4 {[%emt 0:00:06]} Kxf5 {[%emt 0:00:54]} 38. fxe5 {[%emt 0:00:13]} Bb4 {[%emt 0:01:58]} 39. Rf1+ {[%emt 0:01:25]} Kg5 {[%emt 0:00:29]} 40. Bxb4 {[%emt 0:01:14]} Nxb4 {[%emt 0:00:01]} 41. e6 {[%emt 0:01:52]} Nxa2 {[%emt 0:00:21]} 42. Ke3 {[%emt 0:01:05]} Re8 {[%emt 0:00:11]} 43. Bh3 {[%emt 0:00:13]} Nb4 {[%emt 0:00:03]} 44. Rf7 {[%emt 0:02:17]} Na6 {[%emt 0:00:09]} 45. Kd4 {[%emt 0:02:45]} Kxh6 {[%emt 0:00:31]} 46. Rxb7 {[%emt 0:02:10]} Kg6 {[%emt 0:00:00]} 47. Rxa7 {[%emt 0:04:13]} Nb4 {[%emt 0:00:00]} 48. Rb7 {[%emt 0:03:08]} Rd8+ {[%emt 0:00:11]} 49. Rd7 {[%emt 0:03:12]} Rf8 {[%emt 0:00:01]} 50. e7 {[%emt 0:01:19]} Re8 {[%emt 0:00:02]} 51. Kc5 {[%emt 0:01:29]} Na6+ {[%emt 0:00:01]} 52. Kd6 {[%emt 0:00:10]} Kf6 {[%emt 0:00:18]} 53. Rb7 {[%emt 0:01:34]} c5 {[%emt 0:00:35]} 54. Rb6 {[%emt 0:00:14]} Nb8 {[%emt 0:00:09]} 55. Kc7+ {[%emt 0:00:24]} Kf7 {[%emt 0:00:12]} 56. Rxb8 {[%emt 0:00:09]} Rxe7+ {[%emt 0:00:01]} 57. Kc6 {[%emt 0:00:09]} 1-0

[Event "Charlotte Open 2024"]
[Site "Charlotte"]
[Date "2024.01.14"]
[Round "3.8"]
[White "Belenkaya, Dina"]
[Black "Wofford, Matthew"]
[Result "0-1"]
[ECO "A06"]
[WhiteElo "2202"]
[BlackElo "1993"]
[Annotator "RC"]
[PlyCount "106"]
[EventDate "2024.01.05"]
[EventType "swiss"]
[EventCountry "USA"]
[SourceTitle "playchess.com"]
[Source "ChessBase"]
[SourceQuality "1"]
[TimeControl "6600+10"]

1. Nf3 {[%emt 0:04:20]} Nf6 {[%emt 0:00:14]} 2. b3 {[%emt 0:01:41]} d5 {[%emt 0:03:20]} 3. Bb2 {[%emt 0:08:02]} e6 {[%emt 0:01:30]} 4. g3 {[%emt 0:01:29]} c5 {[%emt 0:03:10]} 5. Bg2 {[%emt 0:00:32]} Be7 {[%emt 0:02:42]} 6. O-O {[%emt 0:01:03]} O-O {[%emt 0:01:03]} 7. d3 {[%emt 0:02:41]} Nc6 {[%emt 0:01:45]} 8. Nbd2 {[%emt 0:00:19]} Re8 {[%emt 0:03:58]} 9. e4 {[%emt 0:03:26]} b6 {[%emt 0:10:33]} 10. e5 {[%emt 0:07:18]} Nd7 {[%emt 0:02:42]} 11. c4 {[%emt 0:07:09]} Bb7 {[%emt 0:05:37]} 12. h4 {[%emt 0:00:56]} Qc7 {[%emt 0:07:27]} 13. Re1 {[%emt 0:05:51]} Nf8 {[%emt 0:03:03]} 14. h5 {[%emt 0:00:56]} h6 {[%emt 0:02:24]} 15. cxd5 {[%emt 0:09:57]} exd5 {[%emt 0:00:19]} 16. Nf1 {[%emt 0:00:33]} d4 {[%emt 0:09:45]} 17. N1h2 {[%emt 0:01:54]} Rad8 {[%emt 0:06:27]} 18. Bc1 {[%emt 0:03:23]} Bc8 {[%emt 0:01:37]} 19. Bf4 {[%emt 0:03:07]} Ne6 {[%emt 0:03:19]} 20. Bd2 {[%emt 0:00:44]} Nf8 {[%emt 0:05:28]} 21. Bf4 {[%emt 0:12:00]} Be6 {[%emt 0:00:52]} 22. Nd2 {[%emt 0:02:43]} Nb4 {[%emt 0:02:33]} 23. Ne4 {[%emt 0:00:39]} Qd7 {[%emt 0:03:39]} 24. g4 {[%emt 0:04:37]} Nh7 {[%emt 0:02:19]} 25. Bg3 {[%emt 0:04:28]} Nd5 {[%emt 0:00:45]} 26. Kh1 {[%emt 0:07:18]} Ng5 {[%emt 0:01:45]} 27. Nxg5 {[%emt 0:10:26]} Bxg5 {[%emt 0:02:37]} 28. Bxd5 {[%emt 0:02:28]} Bxd5+ {[%emt 0:00:49]} 29. Kg1 {[%emt 0:00:06]} Bb7 {[%emt 0:03:34]} 30. f4 {[%emt 0:00:15]} Qd5 {[%emt 0:02:40]} 31. Re4 {[%emt 0:00:27]} Be7 {[%emt 0:01:27]} 32. Kf2 {[%emt 0:00:15]} b5 {[%emt 0:01:47]} 33. Rc1 {[%emt 0:01:09]} Rc8 {[%emt 0:00:44]} 34. Nf3 {[%emt 0:02:53]} Qd7 {[%emt 0:03:25]} 35. Nd2 {[%emt 0:00:11]} Qd5 {[%emt 0:05:20]} 36. Kf1 {[%emt 0:00:13]} a5 {[%emt 0:00:17]} 37. Bf2 {[%emt 0:00:11]} f6 {[%emt 0:00:49]} 38. e6 {[%emt 0:00:18]} f5 {[%emt 0:00:32]} 39. gxf5 {[%emt 0:00:12]} Qxf5 {[%emt 0:00:08]} 40. Qe2 {[%emt 0:00:26]} Bd6 {[%emt 0:00:31]} 41. Ke1 {[%emt 0:00:11]} Bxf4 {[%emt 0:00:27]} 42. e7 {[%emt 0:00:09]} Bxd2+ {[%emt 0:00:19]} 43. Kxd2 {[%emt 0:00:03]} Bxe4 {[%emt 0:00:14]} 44. dxe4 {[%emt 0:00:02]} Qf4+ {[%emt 0:00:29]} 45. Kd1 {[%emt 0:00:24]} Rxe7 {[%emt 0:00:18]} 46. Rc2 {[%emt 0:00:03]} Qxe4 {[%emt 0:00:53]} 47. Qxb5 {[%emt 0:00:02]} Rf7 {[%emt 0:01:04]} 48. Kc1 {[%emt 0:00:26]} d3 {[%emt 0:00:21]} 49. Rd2 {[%emt 0:00:13]} c4 {[%emt 0:00:07]} 50. Qa6 {[%emt 0:00:02]} Rc6 {[%emt 0:00:23]} 51. Qa8+ {[%emt 0:00:07]} Rf8 {[%emt 0:00:09]} 52. Qxa5 {[%emt 0:00:14]} c3 {[%emt 0:00:22]} 53. Rd1 {[%emt 0:00:17]} d2+ {[%emt 0:00:07]} 0-1

[Event "Charlotte Open 2024"]
[Site "Charlotte"]
[Date "2024.01.14"]
[Round "3.11"]
[White "Kraai, Jesse"]
[Black "Liu, Ethan"]
[Result "1-0"]
[ECO "D02"]
[WhiteElo "2375"]
[BlackElo "1967"]
[Annotator "RC"]
[PlyCount "74"]
[EventDate "2024.01.05"]
[EventType "swiss"]
[EventCountry "USA"]
[SourceTitle "playchess.com"]
[Source "ChessBase"]
[SourceQuality "1"]
[TimeControl "6600+10"]

1. d4 {[%emt 0:00:04]} d5 {[%emt 0:00:04]} 2. Nf3 {[%emt 0:00:05]} e6 {[%emt 0:00:03]} 3. Bf4 {[%emt 0:00:32]} Nf6 {[%emt 0:02:10]} 4. e3 {[%emt 0:00:10]} c5 {[%emt 0:00:14]} 5. Nbd2 {[%emt 0:00:32]} Nc6 {[%emt 0:01:32]} 6. c3 {[%emt 0:00:49]} Bd6 {[%emt 0:01:46]} 7. Bg3 {[%emt 0:00:11]} Qe7 {[%emt 0:02:13]} 8. Ne5 {[%emt 0:00:58]} O-O {[%emt 0:01:45]} 9. Bd3 {[%emt 0:00:36]} Nd7 {[%emt 0:06:01]} 10. Nxd7 {[%emt 0:03:36]} Bxd7 {[%emt 0:01:29]} 11. Bxd6 {[%emt 0:01:49]} Qxd6 {[%emt 0:00:07]} 12. dxc5 {[%emt 0:00:03]} Qxc5 {[%emt 0:00:51]} 13. Bxh7+ {[%emt 0:00:05]} Kxh7 {[%emt 0:01:31]} 14. Qh5+ {[%emt 0:00:39]} Kg8 {[%emt 0:00:01]} 15. Ne4 {[%emt 0:00:07]} Qc4 {[%emt 0:22:02]} 16. Ng5 {[%emt 0:00:15]} Rfe8 {[%emt 0:01:50]} 17. Qxf7+ {[%emt 0:01:42]} Kh8 {[%emt 0:01:20]} 18. Qxd7 {[%emt 0:04:19]} Qg4 {[%emt 0:09:19]} 19. Nf7+ {[%emt 0:06:45]} Kg8 {[%emt 0:00:17]} 20. Qxb7 {[%emt 0:00:27]} Qxg2 {[%emt 0:14:34]} 21. O-O-O {[%emt 0:10:30]} Rab8 {[%emt 0:01:01]} 22. Qxc6 {[%emt 0:00:24]} Qxf2 {[%emt 0:00:57]} 23. Rd2 {[%emt 0:03:53]} Qxf7 {[%emt 0:00:43]} 24. Qd6 {[%emt 0:06:25]} Rb7 {[%emt 0:16:14]} 25. Qe5 {[%emt 0:02:46]} Ree7 {[%emt 0:02:56]} 26. Rg1 {[%emt 0:02:45]} Qe8 {[%emt 0:04:00]} 27. Kb1 {[%emt 0:11:55]} Qa4 {[%emt 0:01:20]} 28. Qd4 {[%emt 0:01:12]} Qc6 {[%emt 0:00:19]} 29. h4 {[%emt 0:02:12]} Kf8 {[%emt 0:00:25]} 30. h5 {[%emt 0:00:47]} Ke8 {[%emt 0:01:23]} 31. e4 {[%emt 0:09:56]} Red7 {[%emt 0:06:08]} 32. h6 {[%emt 0:04:37]} gxh6 {[%emt 0:02:32]} 33. Qf6 {[%emt 0:01:15]} Re7 {[%emt 0:00:57]} 34. exd5 {[%emt 0:01:10]} Qc4 {[%emt 0:00:50]} 35. dxe6 {[%emt 0:02:00]} Qe4+ {[%emt 0:01:50]} 36. Kc1 {[%emt 0:01:30]} Qh7 {[%emt 0:00:13]} 37. Rdg2 {[%emt 0:01:59]} Rg7 {[%emt 0:00:52]} 1-0